lending/lending_fUSD_20250706
["ID","MTS","AMOUNT","RATE_DAILY","PERIOD"]
[370017338,1751835871233,555.64,0.00030136,120]
[370017339,1751835873509,488.22,0.00030136,120]
[370017340,1751835873623,599.59,0.00030136,120]
[370017341,1751835873889,553.74,0.00030136,120]
[370017342,1751835875882,460.0,0.00030136,120]
[370017343,1751835875913,470.54,0.00030136,120]
[370017344,1751835876440,1969.9,0.00030136,120]
[370017345,1751835876679,697.88,0.00030136,120]
[370017346,1751835876989,929.77,0.00030136,120]
[370017347,1751835877111,479.72,0.00030136,120]
[370017348,1751835877398,668.45,0.00030136,120]
[370017349,1751835878402,556.95,0.00030136,120]
[370017350,1751835878603,533.22,0.00030136,120]
[370017351,1751835880136,635.54,0.00030136,120]
[370017352,1751835880211,460.0,0.00030136,120]
[370017353,1751835881296,460.0,0.00030136,120]
[370017354,1751835881644,460.0,0.00030136,120]
[370017355,1751835884022,772.95,0.00030136,120]
[370017356,1751835884209,631.14,0.00030136,120]
[370017357,1751835884602,827.14,0.00030136,120]
[370017358,1751835884870,1617.64,0.00030136,120]
[370017359,1751835886665,460.0,0.00030136,120]
[370017360,1751835886991,1373.38,0.00030136,120]
[370017361,1751835887026,1206.78,0.00030136,120]
[370017362,1751835887615,678.89,0.00030136,120]
[370017363,1751835887809,460.0,0.00030136,120]
[370017364,1751835888327,1677.03,0.00030136,120]
[370017365,1751835889405,748.04,0.00030136,120]
[370017366,1751835890705,460.0,0.00030136,120]
[370017367,1751835892421,460.0,0.00030136,120]
[370017368,1751835893408,460.0,0.00030136,120]
[370017369,1751835893994,9173.41,0.00030136,120]
[370017370,1751835894275,720.74,0.00030136,120]
[370017371,1751835894728,1112.51,0.00030136,120]
[370017372,1751835895199,2212.73,0.00030136,120]
[370017373,1751835895234,536.91,0.00030136,120]
[370017374,1751835895735,687.84,0.00030136,120]
[370017375,1751835896326,843.0,0.00030136,120]
[370017376,1751835897796,628.86,0.00030136,120]
[370017377,1751835898201,466.12,0.00030136,120]
[370017378,1751835899645,1162.43,0.00030136,120]
[370017379,1751835902245,809.66,0.00030136,120]
[370017380,1751835902451,5359.22,0.00030136,120]
[370017381,1751835903589,460.0,0.00030136,120]
[370017382,1751835905787,460.0,0.00030136,120]
[370017383,1751835905930,539.55,0.00030136,120]
[370017384,1751835906185,571.41,0.00030136,120]
[370017385,1751835906984,769.03,0.00030136,120]
[370017386,1751835907287,713.66,0.00030136,120]
[370017387,1751835907405,460.0,0.00030136,120]
[370017388,1751835907514,2499.35,0.00030136,120]
[370017389,1751835908308,469.33287147,0.00030136,120]
[370017390,1751835909390,610.87,0.00030136,120]
[370017391,1751835911908,740.26,0.00030136,120]
[370017392,1751835912402,460.0,0.00030136,120]
[370017393,1751835912848,460.0,0.00030136,120]
[370017394,1751835914106,632.54,0.00030136,120]
[370017395,1751835914799,1270.54,0.00030136,120]
[370017396,1751835914997,611.99,0.00030136,120]
[370017397,1751835915239,460.0,0.00030136,120]
[370017398,1751835915524,1621.27,0.00030136,120]
[370017399,1751835916254,460.0,0.00030136,120]
[370017400,1751835916772,1669.95,0.00030136,120]
[370017401,1751835917904,460.0,0.00030136,120]
[370017402,1751835918809,460.0,0.00030136,120]
[370017403,1751835919865,691.06,0.00030136,120]
[370017404,1751835919923,460.0,0.00030136,120]
[370017405,1751835920676,746.83,0.00030136,120]
[370017406,1751835920770,838.3,0.00030136,120]
[370017407,1751835921588,460.0,0.00030136,120]
[370017408,1751835922182,517.69,0.00030136,120]
[370017409,1751835922429,2296.02,0.00030136,120]
[370017410,1751835923226,1249.4,0.00030136,120]
[370017411,1751835923618,460.0,0.00030136,120]
[370017412,1751835924648,745.35,0.00030136,120]
[370017413,1751835925379,460.0,0.00030136,120]
[370017414,1751835925832,2632.45,0.00030136,120]
[370017415,1751835927072,1983.46,0.00030136,120]
[370017416,1751835927412,461.31,0.00030136,120]
[370017417,1751835928023,460.0,0.00030136,120]
[370017418,1751835928831,488.34,0.00030136,120]
[370017419,1751835928868,460.0,0.00030136,120]
[370017420,1751835930045,507.22,0.00030136,120]
[370017421,1751835930962,696.91,0.00030136,120]
[370017422,1751835931065,460.0,0.00030136,120]
[370017423,1751835931230,776.16,0.00030136,120]
[370017424,1751835931908,460.0,0.00030136,120]
[370017425,1751835932650,460.0,0.00030136,120]
[370017426,1751835933047,460.0,0.00030136,120]
[370017427,1751835935165,460.0,0.00030136,120]
[370017428,1751835935290,460.0,0.00030136,120]
[370017429,1751835935583,1333.62,0.00030136,120]
[370017430,1751835935932,460.0,0.00030136,120]
[370017431,1751835936285,3337.3,0.00030136,120]
[370017432,1751835936760,1118.87,0.00030136,120]
[370017433,1751835937800,460.0,0.00030136,120]
[370017434,1751835937840,551.35,0.00030136,120]
[370017435,1751835938193,821.4,0.00030136,120]
[370017436,1751835938984,460.0,0.00030136,120]
[370017437,1751835939178,460.0,0.00030136,120]
[370017438,1751835939371,1003.34,0.00030136,120]
[370017439,1751835940270,550.75,0.00030136,120]
[370017440,1751835941017,516.03,0.00030136,120]
[370017441,1751835942877,2351.76,0.00030136,120]
[370017442,1751835943049,1471.2,0.00030136,120]
[370017443,1751835943082,460.0,0.00030136,120]
[370017444,1751835944028,460.0,0.00030136,120]
[370017445,1751835944546,925.78,0.00030136,120]
[370017446,1751835945692,935.41,0.00030136,120]
[370017447,1751835948070,460.0,0.00030136,120]
[370017448,1751835948857,460.0,0.00030136,120]
[370017449,1751835948970,569.54,0.00030136,120]
[370017450,1751835949144,861.33,0.00030136,120]
[370017451,1751835951144,3204.39,0.00030136,120]
[370017452,1751835952864,819.46,0.00030136,120]
[370017453,1751835953644,1960.29,0.00030136,120]
[370017454,1751835953759,797.43,0.00030136,120]
[370017455,1751835954200,460.0,0.00030136,120]
[370017456,1751835954239,460.0,0.00030136,120]
[370017457,1751835954384,460.0,0.00030136,120]
[370017458,1751835954715,626.78,0.00030136,120]
[370017459,1751835954932,460.0,0.00030136,120]
[370017460,1751835955696,460.0,0.00030136,120]
[370017461,1751835956005,2435.5,0.00030136,120]
[370017462,1751835957020,460.0,0.00030136,120]
[370017463,1751835958735,460.0,0.00030136,120]
[370017464,1751835960683,460.0,0.00030136,120]
[370017465,1751835960717,584.52,0.00030136,120]
[370017466,1751835961499,546.62,0.00030136,120]
[370017467,1751835962000,711.3,0.00030136,120]
[370017468,1751835962699,594.72,0.00030136,120]
[370017469,1751835963250,1029.07,0.00030136,120]
[370017470,1751835964322,1049.69,0.00030136,120]
[370017471,1751835964581,460.0,0.00030136,120]
[370017472,1751835965221,1000.0,0.00030136,120]
[370017473,1751835965316,460.0,0.00030136,120]
[370017474,1751835965597,1369.08,0.00030136,120]
[370017475,1751835966673,460.0,0.00030136,120]
[370017476,1751835966787,465.67539319,0.00030136,120]
[370017477,1751835968420,535.58,0.00030136,120]
[370017478,1751835968681,460.0,0.00030136,120]
[370017479,1751835968838,527.4351326,0.00030136,120]
[370017480,1751835968979,654.99,0.00030136,120]
[370017481,1751835970167,460.0,0.00030136,120]
[370017482,1751835971482,549.76887237,0.00030136,120]
[370017483,1751835972519,510.53,0.00030136,120]
[370017484,1751835972562,460.0,0.00030136,120]
[370017485,1751835972641,53111.6,0.00030136,120]
[370017486,1751835973635,710.37,0.00030136,120]
[370017487,1751835975085,460.0,0.00030136,120]
[370017488,1751835975361,520.78,0.00030136,120]
[370017489,1751835976933,706.59,0.00030136,120]
[370017490,1751835977625,600.44,0.00030136,120]
[370017491,1751835978146,1012.2,0.00030136,120]
[370017492,1751835978730,608.17,0.00030136,120]
[370017493,1751835979362,1441.98,0.00030136,120]
[370017494,1751835979518,847.72,0.00030136,120]
[370017495,1751835979849,884.25,0.00030136,120]
[370017496,1751835980286,1422.38,0.00030136,120]
[370017497,1751835981068,460.0,0.00030136,120]
[370017498,1751835981408,460.0,0.00030136,120]
[370017499,1751835984061,516.76,0.00030136,120]
[370017500,1751835984897,2411.15,0.00030136,120]
[370017501,1751835987402,460.0,0.00030136,120]
[370017502,1751835987948,778.09,0.00030136,120]
[370017503,1751835988118,472.9,0.00030136,120]
[370017504,1751835989561,460.0,0.00030136,120]
[370017505,1751835989666,3011.76,0.00030136,120]
[370017506,1751835990097,947.67,0.00030136,120]
[370017507,1751835994011,1289.01,0.00030136,120]
[370017508,1751835994846,460.0,0.00030136,120]
[370017509,1751835995073,644.76,0.00030136,120]
[370017510,1751835996302,680.44,0.00030136,120]
[370017511,1751835997046,470.30044103,0.00030136,120]
[370017512,1751835997449,779.51,0.00030136,120]
[370017513,1751835999970,1289.17,0.00030136,120]
[370017514,1751836001481,656.92,0.00030136,120]
[370017515,1751836002188,460.0,0.00030136,120]
[370017516,1751836003459,460.0,0.00030136,120]
[370017517,1751836004871,334.32,0.00030136,120]
[370017518,1751836006632,1707.67,0.00030136,120]
[370017519,1751836007265,542.46,0.00030136,120]
[370017520,1751836008062,721.19,0.00030136,120]
[370017521,1751836008883,460.0,0.00030136,120]
[370017522,1751836008916,460.0,0.00030136,120]
[370017523,1751836009420,1322.73,0.00030136,120]
[370017524,1751836010452,576.07,0.00030136,120]
[370017525,1751836012792,460.0,0.00030136,120]
[370017526,1751836015374,460.0,0.00030136,120]
[370017527,1751836015892,460.0,0.00030136,120]
[370017528,1751836016439,752.82,0.00030136,120]
[370017529,1751836017687,681.24,0.00030136,120]
[370017530,1751836018264,460.0,0.00030136,120]
[370017531,1751836018312,506.69,0.00030136,120]
[370017532,1751836018691,460.0,0.00030136,120]
[370017533,1751836018967,8119.11,0.00030136,120]
[370017534,1751836019659,712.28,0.00030136,120]
[370017535,1751836020148,460.0,0.00030136,120]
[370017536,1751836024841,460.0,0.00030136,120]
[370017537,1751836025905,460.0,0.00030136,120]
[370017538,1751836025936,460.0,0.00030136,120]
[370017539,1751836025976,653.56,0.00030136,120]
[370017540,1751836026935,526.42781639,0.00030136,120]
[370017541,1751836027048,1116.21,0.00030136,120]
[370017542,1751836028651,460.0,0.00030136,120]
[370017543,1751836029141,2501.74,0.00030136,120]
[370017544,1751836030133,460.0,0.00030136,120]
[370017545,1751836030201,790.35,0.00030136,120]
[370017546,1751836030234,460.0,0.00030136,120]
[370017547,1751836030684,500.0,0.00030136,120]
[370017548,1751836031527,500.0,0.00030136,120]
[370017549,1751836031852,500.0,0.00030136,120]
[370017550,1751836032117,500.0,0.00030136,120]
[370017551,1751836032440,500.0,0.00030136,120]
[370017552,1751836032688,500.0,0.00030136,120]
[370017553,1751836032961,500.0,0.00030136,120]
[370017554,1751836033204,500.0,0.00030136,120]
[370017555,1751836033496,500.0,0.00030136,120]
[370017556,1751836033747,500.0,0.00030136,120]
[370017557,1751836033817,880.14,0.00030136,120]
[370017558,1751836033983,1847.3,0.00030136,120]
[370017559,1751836034019,500.0,0.00030136,120]
[370017560,1751836034287,460.0,0.00030136,120]
[370017561,1751836034682,500.0,0.00030136,120]
[370017562,1751836034939,500.0,0.00030136,120]
[370017563,1751836034978,460.0,0.00030136,120]
[370017564,1751836035138,1877.5,0.00030136,120]
[370017565,1751836035177,460.0,0.00030136,120]
[370017566,1751836035216,500.0,0.00030136,120]
[370017567,1751836035405,500.0,0.00030136,120]
[370017568,1751836035496,961.38,0.00030136,120]
[370017569,1751836035663,261.8,0.00030136,120]
[370017570,1751836037296,847.73,0.00030136,120]
[370017571,1751836038069,1293.61,0.00030136,120]
[370017572,1751836038161,833.59,0.00030136,120]
[370017573,1751836039415,460.0,0.00030136,120]
[370017574,1751836040145,460.0,0.00030136,120]
[370017575,1751836040617,199.91,0.00030136,120]
[370017576,1751836040659,4385.73,0.00030136,120]
[370017577,1751836041999,460.0,0.00030136,120]
[370017578,1751836042109,641.51,0.00030136,120]
[370017579,1751836044557,460.0,0.00030136,120]
[370017580,1751836044928,590.99,0.00030136,120]
[370017581,1751836045167,622.56,0.00030136,120]
[370017582,1751836046516,618.27,0.00030136,120]
[370017583,1751836047034,460.0,0.00030136,120]
[370017584,1751836047083,1199.52,0.00030136,120]
[370017585,1751836047118,712.05,0.00030136,120]
[370017586,1751836048676,462.3981588,0.00030136,120]
[370017587,1751836048726,460.0,0.00030136,120]
[370017588,1751836048969,162.79,0.00030136,120]
[370017589,1751836050306,460.0,0.00030136,120]
[370017590,1751836050423,853.31,0.00030136,120]
[370017591,1751836051579,656.19,0.00030136,120]
[370017592,1751836051925,797.09,0.00030136,120]
[370017593,1751836052007,1238.09,0.00030136,120]
[370017594,1751836055133,9652.49,0.00030136,120]
[370017595,1751836057812,460.0,0.00030136,120]
[370017596,1751836058461,479.54202908,0.00030136,120]
[370017597,1751836059623,689.58,0.00030136,120]
[370017598,1751836060075,1189.03,0.00030136,120]
[370017599,1751836060256,324.92631148,0.00030136,120]
[370017600,1751836060348,460.0,0.00030136,120]
[370017601,1751836061033,1524.75,0.00030136,120]
[370017602,1751836061324,460.0,0.00030136,120]
[370017603,1751836062310,460.0,0.00030136,120]
[370017604,1751836062930,460.0,0.00030136,120]
[370017605,1751836063775,460.0,0.00030136,120]
[370017606,1751836066458,554.57,0.00030136,120]
[370017607,1751836067367,1105.55,0.00030136,120]
[370017608,1751836069582,678.83,0.00030136,120]
[370017609,1751836069794,576.43,0.00030136,120]
[370017610,1751836069838,1382.51,0.00030136,120]
[370017611,1751836069912,524.42785875,0.00030136,120]
[370017612,1751836072074,1826.05,0.00030136,120]
[370017613,1751836073703,460.0,0.00030136,120]
[370017614,1751836073915,577.49,0.00030136,120]
[370017615,1751836074404,460.0,0.00030136,120]
[370017616,1751836078720,460.0,0.00030136,120]
[370017617,1751836080047,835.79,0.00030136,120]
[370017618,1751836080909,1071.8,0.00030136,120]
[370017619,1751836081210,1668.97,0.00030136,120]
[370017620,1751836081736,460.0,0.00030136,120]
[370017621,1751836082408,460.0,0.00030136,120]
[370017622,1751836082830,460.0,0.00030136,120]
[370017623,1751836082915,460.0,0.00030136,120]
[370017624,1751836083619,257.7929624,0.00030136,120]
[370017625,1751836084842,539.46103321,0.00030136,120]
[370017626,1751836086010,460.0,0.00030136,120]
[370017627,1751836087090,777.39,0.00030136,120]
[370017628,1751836087965,460.0,0.00030136,120]
[370017629,1751836089254,2694.95,0.00030136,120]
[370017630,1751836090619,460.0,0.00030136,120]
[370017631,1751836090769,904.71,0.00030136,120]
[370017632,1751836090839,460.0,0.00030136,120]
[370017633,1751836091191,574.61,0.00030136,120]
[370017634,1751836091298,460.0,0.00030136,120]
[370017635,1751836091604,501.29,0.00030136,120]
[370017636,1751836091815,598.73,0.00030136,120]
[370017637,1751836092949,460.0,0.00030136,120]
[370017638,1751836096437,460.0,0.00030136,120]
[370017639,1751836098966,460.0,0.00030136,120]
[370017640,1751836099508,460.0,0.00030136,120]
[370017641,1751836099547,1083.26,0.00030136,120]
[370017642,1751836099595,460.0,0.00030136,120]
[370017643,1751836101291,460.0,0.00030136,120]
[370017644,1751836101479,460.0,0.00030136,120]
[370017646,1751836102451,604.84,0.00030136,120]
[370017647,1751836102593,460.0,0.00030136,120]
[370017648,1751836103025,1545.6,0.00030136,120]
[370017649,1751836104208,460.0,0.00030136,120]
[370017650,1751836104463,1324.25,0.00030136,120]
[370017651,1751836104566,640.6,0.00030136,120]
[370017652,1751836105383,460.0,0.00030136,120]
[370017653,1751836105418,460.0,0.00030136,120]
[370017654,1751836107527,156.79,0.00013699,2]
[370017655,1751836107711,2524.38,0.00030136,120]
[370017656,1751836109067,465.1,0.00030136,120]
[370017657,1751836110244,460.0,0.00030136,120]
[370017658,1751836110827,775.93,0.00030136,120]
[370017659,1751836111016,460.0,0.00030136,120]
[370017660,1751836113722,668.8,0.00030136,120]
[370017661,1751836114154,460.0,0.00030136,120]
[370017662,1751836117071,852.93,0.00030136,120]
[370017663,1751836117951,659.18,0.00030136,120]
[370017664,1751836118570,467.26189351,0.00030136,120]
[370017665,1751836118608,863.51,0.00030136,120]
[370017666,1751836118642,1384.69,0.00030136,120]
[370017667,1751836118893,1607.15,0.00030136,120]
[370017668,1751836121690,1156.5,0.00030136,120]
[370017669,1751836122634,1316.16,0.00030136,120]
[370017670,1751836123299,460.0,0.00030136,120]
[370017671,1751836123430,1001.84,0.00030136,120]
[370017672,1751836124164,1217.6,0.00030136,120]
[370017673,1751836126573,460.0,0.00030136,120]
[370017674,1751836126610,1887.82,0.00030136,120]
[370017675,1751836127471,460.0,0.00030136,120]
[370017676,1751836127785,460.0,0.00030136,120]
[370017677,1751836128670,460.0,0.00030136,120]
[370017678,1751836129804,606.18,0.00030136,120]
[370017679,1751836130161,460.0,0.00030136,120]
[370017680,1751836130934,2120.53,0.00030136,120]
[370017681,1751836130982,619.51,0.00030136,120]
[370017682,1751836131826,460.0,0.00030136,120]
[370017683,1751836132207,1197.34,0.00030136,120]
[370017684,1751836133499,460.0,0.00030136,120]
[370017685,1751836133675,460.0,0.00030136,120]
[370017686,1751836133886,709.42,0.00030136,120]
[370017687,1751836133966,514.54,0.00030136,120]
[370017688,1751836135651,792.68,0.00030136,120]
[370017689,1751836135967,460.0,0.00030136,120]
[370017690,1751836137677,589.94,0.00030136,120]
[370017691,1751836138102,685.26,0.00030136,120]
[370017692,1751836138138,203.37003085,0.00030136,120]
[370017693,1751836139325,591.95,0.00030136,120]
[370017694,1751836139993,2395.21,0.00030136,120]
[370017695,1751836140059,467.88,0.00030136,120]
[370017696,1751836141611,436.81,0.00030136,120]
[370017697,1751836141716,547.6,0.00030136,120]
[370017698,1751836142512,460.0,0.00030136,120]
[370017699,1751836144057,507.7,0.00030136,120]
[370017700,1751836145355,460.0,0.00030136,120]
[370017701,1751836145900,743.82,0.00030136,120]
[370017702,1751836146695,2522.77,0.00030136,120]
[370017703,1751836146730,585.41,0.00030136,120]
[370017704,1751836147124,460.0,0.00030136,120]
[370017705,1751836149179,779.68,0.00030136,120]
[370017706,1751836150264,1550.24,0.00030136,120]
[370017708,1751836153249,460.0,0.00030136,120]
[370017709,1751836154190,1182.83,0.00030136,120]
[370017710,1751836154277,527.8,0.00030136,120]
[370017711,1751836155353,690.05,0.00030136,120]
[370017712,1751836155529,758.93,0.00030136,120]
[370017713,1751836155616,2200.35,0.00030136,120]
[370017714,1751836155851,5135.92,0.00030136,120]
[370017715,1751836156054,460.0,0.00030136,120]
[370017716,1751836157126,1072.25,0.00030136,120]
[370017717,1751836157757,715.71,0.00030136,120]
[370017718,1751836158038,460.0,0.00030136,120]
[370017719,1751836158997,460.0,0.00030136,120]
[370017720,1751836160216,460.0,0.00030136,120]
[370017721,1751836160649,486.08,0.00030136,120]
[370017722,1751836160735,785.31,0.00030136,120]
[370017723,1751836160776,460.0,0.00030136,120]
[370017724,1751836161307,1066.15,0.00030136,120]
[370017725,1751836162616,460.0,0.00030136,120]
[370017726,1751836164620,460.0,0.00030136,120]
[370017727,1751836164652,460.0,0.00030136,120]
[370017728,1751836165764,460.0,0.00030136,120]
[370017729,1751836166492,460.0,0.00030136,120]
[370017730,1751836167012,1553.72,0.00030136,120]
[370017731,1751836167923,3198.25,0.00030136,120]
[370017732,1751836169755,2253.77,0.00030136,120]
[370017733,1751836171035,460.0,0.00030136,120]
[370017734,1751836171327,852.44,0.00030136,120]
[370017735,1751836172015,460.0,0.00030136,120]
[370017736,1751836173020,460.0,0.00030136,120]
[370017737,1751836173092,460.0,0.00030136,120]
[370017738,1751836174847,460.0,0.00030136,120]
[370017739,1751836175105,460.0,0.00030136,120]
[370017740,1751836175377,528.38,0.00030136,120]
[370017741,1751836176362,563.34,0.00030136,120]
[370017742,1751836176625,961.53,0.00030136,120]
[370017743,1751836177228,460.0,0.00030136,120]
[370017744,1751836177990,565.61,0.00030136,120]
[370017745,1751836178392,3070.87,0.00030136,120]
[370017746,1751836179474,627.69,0.00030136,120]
[370017747,1751836181857,460.0,0.00030136,120]
[370017748,1751836182056,1312.04,0.00030136,120]
[370017749,1751836182357,561.22711598,0.00030136,120]
[370017750,1751836183395,1600.37,0.00030136,120]
[370017751,1751836183830,546.84796798,0.00030136,120]
[370017752,1751836185136,799.51,0.00030136,120]
[370017753,1751836187120,516.23985785,0.00030136,120]
[370017754,1751836187343,460.0,0.00030136,120]
[370017755,1751836187561,460.0,0.00030136,120]
[370017756,1751836187829,812.4,0.00030136,120]
[370017757,1751836189533,460.0,0.00030136,120]
[370017758,1751836190011,680.77,0.00030136,120]
[370017759,1751836190570,1878.61,0.00030136,120]
[370017760,1751836191063,1000.0,0.00030136,120]
[370017761,1751836191223,460.0,0.00030136,120]
[370017762,1751836192279,520.0,0.00030136,120]
[370017763,1751836193337,1164.7,0.00030136,120]
[370017764,1751836195746,1900.81,0.00030136,120]
[370017765,1751836196967,770.43,0.00030136,120]
[370017766,1751836198390,1381.9,0.00030136,120]
[370017767,1751836198580,460.0,0.00030136,120]
[370017768,1751836199221,460.0,0.00030136,120]
[370017769,1751836199627,677.15,0.00030136,120]
[370017770,1751836200421,617.89,0.00030136,120]
[370017771,1751836201234,986.19,0.00030136,120]
[370017772,1751836201575,2672.35,0.00030136,120]
[370017773,1751836202017,763.64,0.00030136,120]
[370017774,1751836204455,666.81,0.00030136,120]
[370017775,1751836206005,764.21,0.00030136,120]
[370017776,1751836206424,460.0,0.00030136,120]
[370017777,1751836207320,681.66,0.00030136,120]
[370017778,1751836207748,460.0,0.00030136,120]
[370017779,1751836207983,1142.25,0.00030136,120]
[370017780,1751836208396,2334.02,0.00030136,120]
[370017781,1751836209079,575.42,0.00030136,120]
[370017782,1751836209233,652.09,0.00030136,120]
[370017783,1751836209583,571.43,0.00030136,120]
[370017784,1751836210711,460.0,0.00030136,120]
[370017785,1751836210881,460.0,0.00030136,120]
[370017786,1751836213068,460.0,0.00030136,120]
[370017787,1751836214827,668.96,0.00030136,120]
[370017788,1751836214985,460.0,0.00030136,120]
[370017789,1751836216490,460.0,0.00030136,120]
[370017790,1751836216721,233.39,0.00030136,120]
[370017791,1751836217052,460.0,0.00030136,120]
[370017792,1751836217877,617.57,0.00030136,120]
[370017793,1751836218028,659.7,0.00030136,120]
[370017794,1751836220337,1636.52,0.00030136,120]
[370017795,1751836221344,50898.62,0.00030136,120]
[370017796,1751836222471,460.0,0.00030136,120]
[370017797,1751836222515,460.0,0.00030136,120]
[370017798,1751836222776,770.87,0.00030136,120]
[370017799,1751836223886,908.19,0.00030136,120]
[370017800,1751836224350,745.67,0.00030136,120]
[370017801,1751836226174,460.0,0.00030136,120]
[370017802,1751836226342,691.14,0.00030136,120]
[370017803,1751836226501,460.0,0.00030136,120]
[370017804,1751836227543,172.84112918,0.00030136,120]
[370017805,1751836228014,1363.12,0.00030136,120]
[370017806,1751836228416,513.27,0.00030136,120]
[370017807,1751836228993,460.0,0.00030136,120]
[370017808,1751836229408,460.0,0.00030136,120]
[370017809,1751836230857,652.85,0.00030136,120]
[370017820,1751836231928,-186.71,0.00014253,2]
[370017821,1751836231939,-532.0,0.00016482,2]
[370017822,1751836231950,-500.0,0.00017064,2]
[370017823,1751836231960,-181.515989,0.00017064,2]
[370017824,1751836231970,-648.80525232,0.00017064,2]
[370017825,1751836231981,-168.533993,0.00017137,2]
[370017826,1751836231993,-304.44,0.00017224,2]
[370017827,1751836232006,-302.6,0.00017224,2]
[370017828,1751836232017,-151.57,0.00017802,2]
[370017829,1751836232028,-649.35,0.00017859,2]
[370017830,1751836232039,-1200.0,0.00017984,2]
[370017831,1751836232051,-300.0,0.00017985,2]
[370017832,1751836232061,-300.0,0.00017985,2]
[370017833,1751836232072,-300.0,0.00017985,2]
[370017834,1751836232084,-23900.0,0.00017986,2]
[370017835,1751836232096,-666.0,0.00017986,2]
[370017836,1751836232107,-218.67,0.00018037,2]
[370017837,1751836232118,-150.0,0.00018094,2]
[370017838,1751836232129,-181.69,0.00018133,2]
[370017839,1751836232141,-207.4,0.0001817,2]
[370017840,1751836232154,-250.0,0.00018205,2]
[370017841,1751836232167,-167.26,0.00018329,2]
[370017842,1751836232177,-168.0,0.00018356,2]
[370017843,1751836232187,-2216.59143585,0.00018577,2]
[370017844,1751836232228,460.0,0.00030136,120]
[370017845,1751836232245,-874.09224,0.00018577,2]
[370017846,1751836232262,-1019.31632415,0.00018577,2]
[370017847,1751836232273,-754.0,0.00018577,2]
[370017848,1751836232283,-168.0,0.00018581,2]
[370017849,1751836232294,-250.7726223,0.0001877,2]